bitfinex-derivatives/quotes_BTCF0:USTF0_20251103
["timestamp","ask_amount","ask_price","bid_price","bid_amount"]
[1762149032501,0.05277573,107570.0,107560.0,0.95546433]
[1762149032903,0.05277573,107570.0,107560.0,0.81280493]
[1762149033416,0.05277573,107570.0,107560.0,0.90578873]
[1762149033706,0.05277573,107570.0,107560.0,1.04844813]
[1762149034507,0.01325,107580.0,107570.0,0.0929752]
[1762149034706,0.05605,107610.0,107600.0,0.04636]
[1762149034907,0.05605,107610.0,107600.0,0.5119794]
[1762149035396,0.05605,107610.0,107600.0,0.4656194]
[1762149035600,0.05605,107610.0,107580.0,0.01065]
[1762149035601,0.05605,107580.0,107570.0,0.11290475]
[1762149035810,0.05605,107580.0,107570.0,0.68860415]
[1762149036010,0.05605,107580.0,107570.0,1.00222935]
[1762149036215,0.05605,107590.0,107580.0,0.05471]
[1762149036406,0.05605,107590.0,107580.0,0.3273694]
[1762149036606,0.05605,107590.0,107580.0,0.5903359]
[1762149037013,0.05605,107590.0,107580.0,0.56391415]
[1762149037202,0.05605,107590.0,107580.0,0.1973694]
[1762149037597,0.05805,107590.0,107580.0,0.1973694]
[1762149037804,0.06205,107590.0,107580.0,0.3073694]
[1762149038209,0.06205,107590.0,107580.0,0.1973694]
[1762149039010,0.06205,107590.0,107580.0,0.1890194]
[1762149039410,0.05605,107580.0,107570.0,0.11290475]
[1762149039610,0.05605,107580.0,107570.0,0.55739858]
[1762149039809,0.05605,107580.0,107570.0,0.54046758]
[1762149040311,0.05605,107580.0,107570.0,0.38944818]
[1762149040613,0.05805,107580.0,107570.0,0.41273818]
[1762149041508,0.05705,107580.0,107570.0,0.41273818]
[1762149041710,0.06105,107580.0,107570.0,0.57846758]
[1762149042514,0.06205,107580.0,107570.0,0.57846758]
[1762149043309,0.06205,107580.0,107570.0,0.85846758]
[1762149044012,0.06205,107580.0,107570.0,0.57846758]
[1762149045213,0.06205,107580.0,107570.0,0.5119794]
[1762149046917,0.06205,107580.0,107570.0,0.8019794]
[1762149047222,0.06205,107580.0,107570.0,0.86846758]
[1762149047807,0.02837,107580.0,107570.0,0.96979278]
[1762149048004,0.05043,107580.0,107570.0,0.58681758]
[1762149048212,0.06417,107580.0,107570.0,0.57846758]
[1762149049112,0.06417,107580.0,107570.0,0.57826758]
[1762149050114,0.06417,107580.0,107570.0,0.5117794]
[1762149050320,0.06417,107580.0,107570.0,0.57851211]
[1762149051119,0.06417,107580.0,107570.0,0.5117794]
[1762149051324,0.06417,107580.0,107570.0,0.59519858]
[1762149051508,0.06417,107580.0,107570.0,0.72519858]
[1762149051714,0.06417,107580.0,107570.0,0.59519858]
[1762149052922,0.06047573,107580.0,107570.0,0.73354858]
[1762149054732,0.04673573,107580.0,107570.0,0.69652378]
[1762149054919,0.00230573,107580.0,107570.0,0.9431046]
[1762149055120,0.00230573,107580.0,107570.0,1.02652378]
[1762149055319,0.04673573,107580.0,107570.0,0.60354858]
[1762149055521,0.06047573,107580.0,107570.0,0.59519858]
[1762149055829,0.06047573,107580.0,107570.0,0.59515858]
[1762149057619,0.06047573,107580.0,107570.0,0.5117394]
[1762149058719,0.06047573,107580.0,107570.0,0.7717394]
[1762149058923,0.06047573,107580.0,107570.0,0.85515858]
[1762149059129,0.06047573,107580.0,107570.0,0.59515858]
[1762149059425,0.06047573,107580.0,107570.0,0.5117394]
[1762149059620,0.06047573,107580.0,107570.0,0.59515858]
[1762149060322,0.06047573,107580.0,107570.0,0.59726204]
[1762149060519,0.04673573,107580.0,107570.0,0.73561204]
[1762149060720,0.04673573,107580.0,107570.0,0.81903122]
[1762149060921,0.06047573,107580.0,107570.0,0.68068122]
[1762149061324,0.06047573,107580.0,107570.0,0.59726204]
[1762149061833,0.06047573,107580.0,107570.0,0.68068122]
[1762149062330,0.06047573,107580.0,107570.0,0.94903122]
[1762149062830,0.04673573,107580.0,107570.0,0.68903122]
[1762149063032,0.06047573,107580.0,107570.0,0.68068122]
[1762149063522,0.04673573,107580.0,107570.0,0.68903122]
[1762149064231,0.06047573,107580.0,107570.0,0.68068122]
[1762149067533,0.06047573,107580.0,107570.0,0.45249918]
[1762149067832,0.06047573,107580.0,107570.0,0.68068122]
[1762149069234,0.06047573,107580.0,107570.0,0.59726204]
[1762149069424,0.77456675,107580.0,107570.0,0.08363737]
[1762149069630,1.12105777,107580.0,107570.0,0.06691136]
[1762149069827,0.84422777,107580.0,107570.0,0.08363737]
[1762149070027,0.88865777,107580.0,107570.0,0.08363737]
[1762149070227,0.05817,107570.0,107560.0,0.56437941]
[1762149070433,0.02237,107570.0,107560.0,0.82184228]
[1762149070634,0.02237,107570.0,107560.0,0.61476706]
[1762149070835,0.04443,107570.0,107560.0,0.69840443]
[1762149071939,0.04543,107570.0,107560.0,0.69840443]
[1762149072141,0.04543,107570.0,107560.0,0.69940443]
[1762149072337,0.001,107570.0,107560.0,1.23647965]
[1762149072533,0.001,107570.0,107560.0,0.73985808]
[1762149072743,0.04543,107570.0,107560.0,0.69940443]
[1762149073334,0.04173573,107570.0,107560.0,0.69940443]
[1762149073529,0.04173573,107570.0,107560.0,0.37700443]
[1762149073739,0.05547573,107570.0,107560.0,0.68903443]
[1762149074139,0.05547573,107570.0,107560.0,0.27343306]
[1762149074342,0.05547573,107570.0,107560.0,0.59611306]
[1762149074635,0.05547573,107570.0,107560.0,0.7129434]
[1762149075036,0.04173573,107570.0,107560.0,0.7259734]
[1762149075934,0.05668,107580.0,107570.0,0.04452]
[1762149076135,0.05668,107580.0,107570.0,0.36499959]
[1762149076641,0.05668,107580.0,107570.0,0.28137204]
[1762149076943,0.05668,107580.0,107570.0,0.65820238]
[1762149077255,0.05566,107600.0,107590.0,0.04452]
[1762149077444,0.05678,107610.0,107600.0,0.04452]
[1762149077742,0.05678,107610.0,107600.0,0.27270204]
[1762149077943,0.05678,107620.0,107610.0,0.04452]
[1762149078245,0.05678,107620.0,107610.0,0.48137102]
[1762149078445,0.05678,107620.0,107610.0,0.50982083]
[1762149078636,0.05678,107620.0,107610.0,0.36728]
[1762149078945,0.05678,107620.0,107610.0,0.36772]
[1762149079345,0.06978,107620.0,107610.0,0.36772]
[1762149079543,0.06978,107620.0,107610.0,0.36776]
[1762149080147,0.06978,107620.0,107610.0,0.43465638]
[1762149080341,0.07778,107620.0,107610.0,0.43465638]
[1762149080848,0.07778,107620.0,107610.0,0.43461638]
[1762149081546,0.9101,107620.0,107610.0,0.43457638]
[1762149081747,0.9101,107620.0,107610.0,0.41292638]
[1762149081946,0.67778,107620.0,107610.0,0.41292638]
[1762149082449,0.67778,107620.0,107610.0,0.39005638]
[1762149082747,0.3101,107620.0,107610.0,0.06689638]
[1762149082943,0.04294,107610.0,107600.0,0.41292638]
[1762149083248,0.05678,107610.0,107600.0,0.43457638]
[1762149083850,0.05678,107610.0,107600.0,0.4512997]
[1762149084048,0.06378,107610.0,107600.0,0.4512997]
[1762149084350,0.04994,107610.0,107600.0,1.04622787]
[1762149084735,0.007,107610.0,107600.0,1.04622787]
[1762149085136,0.018,107610.0,107600.0,1.04622787]
[1762149085358,0.05678,107630.0,107620.0,0.04452]
[1762149085646,0.05678,107630.0,107620.0,0.60654847]
[1762149086344,0.04294,107630.0,107620.0,0.37595]
[1762149086748,0.05917,107640.0,107630.0,0.0433]
[1762149086948,0.04533,107640.0,107630.0,0.29289847]
[1762149087742,0.05917,107650.0,107640.0,0.0433]
[1762149088051,0.04533,107650.0,107640.0,0.68473835]
[1762149088649,0.0582,107650.0,107640.0,0.68473835]
[1762149088947,0.0582,107650.0,107640.0,0.43305988]
[1762149089443,0.0582,107650.0,107640.0,0.36634]
[1762149089643,0.0582,107650.0,107640.0,0.37134]
[1762149090152,0.02268,107650.0,107640.0,0.45078988]
[1762149090355,0.02268,107650.0,107640.0,0.62301847]
[1762149090648,0.02268,107650.0,107640.0,0.68973835]
[1762149090850,0.04533,107660.0,107650.0,0.05227]
[1762149091046,0.04533,107660.0,107650.0,0.29121847]
[1762149091243,0.0582,107660.0,107650.0,0.0433]
[1762149091452,0.0582,107650.0,107640.0,0.0483]
[1762149091749,0.0582,107650.0,107640.0,0.3713]
[1762149092152,0.0582,107650.0,107640.0,0.3663]
[1762149092549,0.0582,107650.0,107640.0,0.6147187]
[1762149092744,0.0582,107650.0,107640.0,0.3663]
[1762149093458,0.05450573,107650.0,107640.0,0.3663]
[1762149096052,0.04163573,107650.0,107640.0,0.36999]
[1762149096250,0.01287,107660.0,107650.0,0.0433]
[1762149096251,0.0582,107660.0,107650.0,0.0433]
[1762149096754,0.04533,107660.0,107650.0,0.29121847]
[1762149097352,0.04733,107660.0,107650.0,0.29121847]
[1762149097552,0.0602,107660.0,107650.0,0.0433]
[1762149097752,0.0632,107660.0,107650.0,0.0433]
[1762149099053,0.0632,107660.0,107650.0,0.05603]
[1762149099354,0.0632,107660.0,107650.0,0.0433]
[1762149100748,0.0582,107660.0,107650.0,0.0433]
[1762149100947,0.0582,107660.0,107650.0,0.0473]
[1762149103262,0.04533,107660.0,107650.0,0.05627]
[1762149103753,0.02268,107670.0,107660.0,0.01273]
[1762149103962,0.02268,107670.0,107660.0,0.61765847]
[1762149104147,0.04533,107670.0,107660.0,0.61765847]
[1762149104755,0.0582,107670.0,107660.0,0.36598]
[1762149109067,0.05450573,107670.0,107660.0,0.36598]
[1762149109371,0.04601,107650.0,107640.0,0.11469433]
[1762149109570,0.04601,107650.0,107640.0,0.43725433]
[1762149110072,0.02319,107650.0,107640.0,0.43725433]
[1762149110267,0.05989,107660.0,107650.0,0.04463]
[1762149111067,0.05989,107660.0,107650.0,0.05764]
[1762149111272,0.05888,107670.0,107660.0,0.04463]
[1762149112470,0.05888,107670.0,107660.0,0.05701]
[1762149112974,0.05518573,107670.0,107660.0,0.05701]
[1762149113771,0.04601,107670.0,107660.0,0.37949]
[1762149114272,0.05888,107680.0,107670.0,0.05667]
[1762149114973,0.05888,107680.0,107670.0,0.04463]
[1762149115271,0.04601,107680.0,107670.0,0.05431]
[1762149116165,0.04901,107680.0,107670.0,0.05431]
[1762149116565,0.06289,107680.0,107670.0,0.04463]
[1762149116771,0.06489,107680.0,107670.0,0.36715]
[1762149117275,0.05101,107680.0,107670.0,0.38012]
[1762149118277,0.02819,107680.0,107670.0,0.61906847]
[1762149118671,0.05101,107680.0,107670.0,0.44649433]
[1762149118872,0.06489,107680.0,107670.0,0.44649433]
[1762149119375,0.06189,107680.0,107670.0,0.44949433]
[1762149119976,0.05989,107680.0,107670.0,0.45049433]
[1762149121378,0.05989,107680.0,107670.0,0.38412]
[1762149121974,0.04601,107680.0,107670.0,0.38412]
[1762149123574,0.04601,107680.0,107670.0,0.45049433]
[1762149125180,0.02319,107680.0,107670.0,0.45049433]
[1762149125379,0.04601,107680.0,107670.0,0.45049433]
[1762149125778,0.04601,107680.0,107670.0,0.45968862]
[1762149125966,0.05888,107690.0,107680.0,0.05431]
[1762149126169,0.04601,107690.0,107680.0,0.05431]
[1762149126685,0.04601,107700.0,107690.0,0.04832]
[1762149126979,0.05989,107700.0,107690.0,0.3706]
[1762149127382,0.05989,107700.0,107690.0,0.36691]
[1762149127877,0.06189,107700.0,107690.0,0.36691]
[1762149128577,0.06189,107700.0,107690.0,0.04463]
[1762149128772,0.06489,107700.0,107690.0,0.04463]
[1762149129477,0.04601,107680.0,107670.0,0.05764]
[1762149129683,0.04601,107680.0,107670.0,0.37984]
[1762149129880,0.03707,107690.0,107680.0,0.02277]
[1762149130075,0.05989,107690.0,107680.0,0.04463]
[1762149130578,0.05989,107690.0,107680.0,0.05764]
[1762149131778,0.04601,107690.0,107680.0,0.05764]
[1762149132570,0.05619573,107700.0,107690.0,0.04869]
[1762149132980,0.04601,107700.0,107690.0,0.04869]
[1762149133387,0.05989,107700.0,107690.0,0.04869]
[1762149133976,0.04601,107700.0,107690.0,0.04869]
[1762149134283,0.05989,107710.0,107700.0,0.05764]
[1762149135278,0.04601,107710.0,107700.0,0.05764]
[1762149135674,0.05933,107710.0,107700.0,0.04463]
[1762149136086,0.04318,107690.0,107680.0,0.12249433]
[1762149136284,0.04318,107690.0,107680.0,0.42265433]
[1762149136489,0.04318,107690.0,107680.0,0.12249433]
[1762149136690,0.0565,107690.0,107680.0,0.44465433]
[1762149137188,0.04318,107690.0,107680.0,0.44465433]
[1762149137687,0.0213,107690.0,107680.0,0.44765433]
[1762149137987,0.04318,107690.0,107680.0,0.45365433]
[1762149138881,0.03948573,107690.0,107680.0,0.45065433]
[1762149139083,0.03948573,107690.0,107680.0,0.44765433]
[1762149139278,0.03948573,107690.0,107680.0,0.44865433]
[1762149140289,0.03948573,107690.0,107680.0,0.56254733]
[1762149140889,0.03948573,107690.0,107680.0,0.496173]
[1762149141690,0.03948573,107690.0,107680.0,0.5797927]
[1762149142193,0.01760573,107690.0,107680.0,0.5797927]
[1762149142387,0.0565,107700.0,107690.0,0.0492]
[1762149142582,0.04318,107700.0,107690.0,0.11592276]
[1762149143094,0.0213,107710.0,107700.0,0.03534]
[1762149143285,0.04318,107710.0,107700.0,0.05664]
[1762149143996,0.04318,107710.0,107700.0,0.58787739]
[1762149145379,0.04458,107720.0,107710.0,0.05728]
[1762149145593,0.04458,107720.0,107710.0,0.12400276]
[1762149145784,0.04458,107720.0,107710.0,0.26635739]
[1762149145981,0.04458,107730.0,107720.0,0.04375]
[1762149146294,0.04458,107730.0,107720.0,0.19911463]
[1762149146490,0.05827,107730.0,107720.0,0.37888]
[1762149146793,0.04458,107730.0,107720.0,0.37888]
[1762149147191,0.04958,107730.0,107720.0,0.37888]
[1762149147594,0.06327,107730.0,107720.0,0.37888]
[1762149147793,0.05827,107720.0,107710.0,0.08802276]
[1762149147991,0.20062463,107720.0,107710.0,0.06672276]
[1762149148188,0.05827,107710.0,107700.0,0.43254783]
[1762149148690,0.43274463,107710.0,107700.0,0.06667783]
[1762149148890,0.05827,107700.0,107690.0,0.06667783]
[1762149149190,0.05827,107700.0,107690.0,0.11042783]
[1762149149494,0.05827,107700.0,107690.0,0.12411783]
[1762149149694,0.02128,107700.0,107690.0,0.26647246]
[1762149149894,0.02128,107700.0,107690.0,0.58871246]
[1762149150093,0.02128,107700.0,107690.0,0.52203463]
[1762149150294,0.02128,107700.0,107690.0,0.588729]
[1762149150491,0.05827,107700.0,107690.0,0.04375]
[1762149150689,0.05827,107700.0,107690.0,0.11044562]
[1762149150997,0.05827,107700.0,107690.0,0.1273697]
[1762149151296,0.06768715,107700.0,107690.0,0.04375]
[1762149151492,0.05827,107690.0,107680.0,0.11046236]
[1762149151996,0.04458,107690.0,107680.0,0.11488236]
[1762149152197,0.04458,107690.0,107680.0,0.25723699]
[1762149152391,0.04088573,107690.0,107680.0,0.25723699]
[1762149152694,0.05457573,107690.0,107680.0,0.19052463]
[1762149153198,0.05457573,107690.0,107680.0,0.08802106]
[1762149153597,0.05457573,107690.0,107680.0,0.004]
[1762149153598,0.65457573,107690.0,107680.0,0.004]
[1762149153794,0.79693036,107690.0,107680.0,0.004]
[1762149154298,1.11949036,107690.0,107680.0,0.004]
[1762149155087,0.05827,107680.0,107670.0,0.06672106]
[1762149155293,0.05827,107670.0,107660.0,0.08802106]
[1762149155497,0.43282463,107670.0,107660.0,0.06672106]
[1762149155689,0.43282463,107670.0,107650.0,0.11047106]
[1762149155690,0.05827,107660.0,107650.0,0.11047106]
[1762149156300,0.05727,107660.0,107650.0,0.11047106]
[1762149156495,0.19962463,107660.0,107650.0,0.06672106]
[1762149156697,0.42886463,107660.0,107640.0,0.06682221]
[1762149156900,0.05827,107650.0,107640.0,0.06682221]
[1762149157097,0.05527,107650.0,107640.0,0.06682221]
[1762149157303,0.37787,107650.0,107640.0,0.11057221]
[1762149158103,0.37387,107650.0,107640.0,0.11057221]
[1762149158407,0.37017573,107650.0,107640.0,0.11057221]
[1762149158608,0.37017573,107650.0,107640.0,0.04685115]
[1762149158803,0.37017573,107650.0,107640.0,0.00310115]
[1762149159000,1.11253036,107650.0,107640.0,0.00310115]
[1762149159402,1.34477036,107650.0,107640.0,0.00310115]
[1762149159700,1.34477036,107650.0,107640.0,0.01010115]
[1762149161298,0.04458,107620.0,107610.0,0.12416106]
[1762149162206,0.04458,107620.0,107610.0,0.05744]
[1762149162407,0.04467394,107620.0,107610.0,0.07144]
[1762149163004,0.04467394,107620.0,107610.0,0.21379463]
[1762149163207,9.394e-05,107620.0,107610.0,0.21379463]
[1762149163400,0.04757573,107650.0,107640.0,0.05744]
[1762149163600,0.37013573,107650.0,107640.0,0.05744]
[1762149163904,0.37013573,107650.0,107640.0,0.04375]
[1762149164702,0.02128,107630.0,107620.0,0.04375]
[1762149164906,0.04458,107630.0,107620.0,0.04375]
[1762149166510,0.05458,107630.0,107620.0,0.04375]
[1762149168004,0.04758,107630.0,107620.0,0.18610463]
[1762149168205,0.009,107630.0,107620.0,0.18610463]
[1762149168610,0.007,107630.0,107620.0,0.18610463]
[1762149168903,0.02285,107630.0,107620.0,0.18610463]
[1762149169105,0.02585,107630.0,107620.0,0.18610463]
[1762149169306,0.02685,107630.0,107620.0,0.18610463]
[1762149170015,0.005,107630.0,107620.0,0.18610463]
[1762149171021,0.02685,107630.0,107620.0,0.18610463]
[1762149171515,0.005,107630.0,107620.0,0.18610463]
[1762149172016,0.00130573,107630.0,107620.0,0.18610463]
[1762149173816,0.00130573,107630.0,107620.0,0.50858463]
[1762149174119,0.00130573,107630.0,107620.0,0.76858463]
[1762149174515,0.001,107630.0,107620.0,0.76858463]
[1762149174812,0.63363963,107660.0,107650.0,0.04401]
[1762149175214,0.05472,107640.0,107630.0,0.04401]
[1762149175418,0.05472,107640.0,107630.0,0.05742]
[1762149175722,0.04391,107640.0,107630.0,0.05742]
[1762149176016,0.05575,107640.0,107630.0,0.05742]
[1762149176518,0.04391,107640.0,107630.0,0.05742]
[1762149177318,0.04021573,107640.0,107630.0,0.05742]
[1762149177819,0.007,107640.0,107630.0,0.19977463]
[1762149178018,0.007,107640.0,107630.0,0.58269843]
[1762149178316,0.006,107640.0,107630.0,0.58269843]
[1762149178510,0.003,107640.0,107630.0,0.58269843]
[1762149178713,0.0576,107670.0,107660.0,0.05742]
[1762149179015,0.0576,107670.0,107660.0,0.04401]
[1762149179418,0.04391,107660.0,107650.0,0.04401]
[1762149180411,0.04391,107670.0,107660.0,0.05742]
[1762149180807,0.03585,107670.0,107660.0,0.19977463]
[1762149181009,0.014,107670.0,107660.0,0.19977463]
[1762149181416,0.013,107670.0,107660.0,0.19977463]
[1762149181615,0.008,107670.0,107660.0,0.19977463]
[1762149182013,0.004,107670.0,107660.0,0.19977463]
[1762149182327,0.006,107670.0,107660.0,0.19977463]
[1762149182525,0.005,107670.0,107660.0,0.19977463]
[1762149184124,0.001,107670.0,107660.0,0.19977463]
[1762149184322,0.002,107670.0,107660.0,0.52209463]
[1762149184818,0.07788605,107700.0,107690.0,0.04401]
[1762149185125,0.10089001,107700.0,107690.0,0.05427]
[1762149185917,0.02185,107690.0,107680.0,0.03135]
[1762149186122,0.07294396,107690.0,107680.0,0.04401]
[1762149186328,0.06691396,107690.0,107680.0,0.05742]
[1762149187222,0.07957396,107690.0,107680.0,0.04401]
[1762149187830,0.08857396,107690.0,107680.0,0.05742]
[1762149188128,0.05291,107690.0,107680.0,0.05742]
[1762149188723,0.05291,107690.0,107680.0,0.19977463]
[1762149188923,0.009,107690.0,107680.0,0.19977463]
[1762149190330,0.05657,107710.0,107700.0,0.04401]
[1762149191324,0.05657,107700.0,107690.0,0.04401]
[1762149191524,0.05657,107690.0,107680.0,0.04601]
[1762149191927,0.05287573,107690.0,107680.0,0.04401]
[1762149193226,0.05487573,107690.0,107680.0,0.04401]
[1762149193430,0.05541,107680.0,107670.0,0.05742]
[1762149194733,0.05741,107680.0,107670.0,0.05742]
[1762149195332,0.06041,107680.0,107670.0,0.05742]
[1762149196624,0.05671573,107680.0,107670.0,0.04401]
[1762149197935,0.05671573,107680.0,107670.0,0.0572]
[1762149198527,0.05671573,107680.0,107670.0,0.04401]
[1762149199133,0.05439,107670.0,107650.0,0.0134884]
[1762149199332,0.05808,107660.0,107650.0,0.12472946]
[1762149199639,0.04542,107660.0,107650.0,0.12472946]
[1762149200035,0.04542,107670.0,107660.0,0.02172]
[1762149200234,0.04542,107670.0,107660.0,0.05771]
[1762149200434,0.05173,107670.0,107660.0,0.04452]
[1762149201139,0.05173,107670.0,107660.0,0.05771]
[1762149201542,0.04542,107670.0,107660.0,0.05771]
[1762149203041,0.04542,107670.0,107650.0,0.0445984]
[1762149203042,0.05173,107660.0,107650.0,0.0445984]
[1762149203234,0.05173,107660.0,107650.0,0.0577884]
[1762149203540,0.04542,107660.0,107650.0,0.0577884]
[1762149204238,0.05173,107660.0,107650.0,0.0597884]
[1762149205138,0.06102436,107660.0,107650.0,0.0597884]
[1762149206436,0.06102436,107660.0,107650.0,0.0607884]
[1762149206943,0.06102436,107660.0,107650.0,0.0030784]
[1762149208441,0.06102436,107660.0,107650.0,0.0010784]
[1762149208749,0.39226436,107660.0,107650.0,0.0433684]
[1762149209043,0.38797,107660.0,107650.0,0.0562084]
[1762149209741,0.38166,107660.0,107650.0,0.0562084]
[1762149210543,0.05942,107660.0,107650.0,0.0562084]
[1762149211741,0.06569573,107660.0,107650.0,0.0562084]
[1762149214036,0.06569573,107660.0,107650.0,0.0222784]
[1762149214236,0.06569573,107660.0,107650.0,0.0433684]
[1762149215036,0.06569573,107660.0,107650.0,0.0562084]
[1762149215345,0.05572573,107660.0,107650.0,0.0562084]
[1762149216846,0.05203146,107660.0,107650.0,0.0562084]
[1762149218247,0.014,107660.0,107650.0,0.0562084]
[1762149218448,0.014,107660.0,107650.0,0.29495916]
[1762149220550,0.05776,107660.0,107650.0,0.0562084]
[1762149220745,0.07142,107660.0,107650.0,0.0562084]
[1762149220944,0.05776,107660.0,107650.0,0.0562084]
[1762149221141,0.67142,107660.0,107650.0,0.0433684]
[1762149221451,0.90366,107660.0,107650.0,0.0433684]
[1762149221651,0.67142,107660.0,107650.0,0.0433684]
[1762149223554,0.67142,107660.0,107650.0,0.0222784]
[1762149223750,0.67142,107660.0,107650.0,7.84e-05]
[1762149226456,0.67142,107660.0,107650.0,0.0440984]
[1762149226755,0.65776,107660.0,107650.0,0.0571784]
[1762149226955,0.05776,107660.0,107650.0,0.0571784]
[1762149227151,0.014,107660.0,107650.0,0.0571784]
[1762149227450,0.014,107660.0,107650.0,0.29592916]
[1762149227653,0.03584,107660.0,107650.0,0.0571784]
[1762149228059,0.05714,107660.0,107650.0,0.0571784]
[1762149229357,0.014,107660.0,107650.0,0.12389946]
[1762149230160,0.014,107660.0,107650.0,0.29592916]
[1762149230556,0.014,107660.0,107650.0,0.37931961]
[1762149230855,0.03584,107660.0,107650.0,0.14056885]
[1762149231460,0.03214573,107660.0,107650.0,0.14056885]
[1762149231658,0.01030573,107660.0,107650.0,0.14056885]
[1762149233860,0.01030573,107660.0,107650.0,0.37931961]
[1762149236059,0.00661146,107660.0,107650.0,0.37931961]
[1762149238162,0.02845146,107660.0,107650.0,0.37931961]
[1762149238553,0.00661146,107660.0,107650.0,0.37931961]
[1762149241756,0.40804914,107690.0,107650.0,0.50931961]
[1762149241957,0.45118914,107690.0,107680.0,0.04328]
[1762149242264,0.46060152,107690.0,107680.0,0.04328]
[1762149242861,0.04975,107680.0,107670.0,0.11011429]
[1762149244560,0.04314,107680.0,107670.0,0.12319429]
[1762149244766,0.04763,107680.0,107670.0,0.12319429]
[1762149245064,0.05263,107680.0,107670.0,0.12319429]
[1762149245958,0.06263,107680.0,107670.0,0.12319429]
[1762149246369,0.06263,107680.0,107670.0,0.05636]
[1762149246769,0.06263,107680.0,107670.0,0.04328]
[1762149247169,0.06263,107680.0,107670.0,0.05636]
[1762149247375,0.05814,107680.0,107670.0,0.05636]
[1762149249068,0.06263,107680.0,107670.0,0.05636]
[1762149249265,0.06263,107680.0,107670.0,0.04328]
[1762149249667,0.02184,107670.0,107660.0,0.09811429]
[1762149249870,0.05677,107670.0,107660.0,0.11011429]
[1762149250480,0.05677,107670.0,107660.0,0.04328]
[1762149250774,0.05677,107670.0,107660.0,0.02146]
[1762149251162,0.05677,107670.0,107660.0,0.04328]
[1762149251667,0.06077,107670.0,107660.0,0.04328]
[1762149251869,0.05677,107660.0,107650.0,0.12327269]
[1762149252368,0.05307573,107660.0,107650.0,0.0215384]
[1762149252568,0.05307573,107660.0,107650.0,0.0433584]
[1762149252871,0.03944573,107660.0,107650.0,0.0564384]
[1762149253268,0.04644573,107660.0,107650.0,0.0564384]
[1762149255176,0.007,107660.0,107650.0,0.0564384]
[1762149255676,0.00330573,107660.0,107650.0,0.12327269]
[1762149255879,0.00330573,107660.0,107650.0,0.36202345]
[1762149257371,0.00330573,107660.0,107650.0,0.29518916]
[1762149257583,0.02465573,107660.0,107650.0,0.0564384]
[1762149258384,0.00330573,107660.0,107650.0,0.0594384]
[1762149258975,0.13772769,107690.0,107680.0,0.05486]
[1762149259174,0.39781886,107690.0,107680.0,0.05486]
[1762149259376,0.02135,107690.0,107680.0,0.05486]
[1762149259686,0.36573,107710.0,107700.0,0.0572]
[1762149259880,0.36888,107710.0,107700.0,0.0572]
[1762149260086,0.36888,107710.0,107700.0,0.04363]
[1762149260473,0.02135,107690.0,107680.0,0.07804592]
[1762149260677,0.05612,107690.0,107680.0,0.12167592]
[1762149261091,0.04741,107690.0,107680.0,0.12167592]
[1762149261992,0.04841,107690.0,107680.0,0.12167592]
[1762149262785,0.04441,107690.0,107680.0,0.12167592]
[1762149262986,0.04341,107690.0,107680.0,0.12267592]
[1762149263187,0.04341,107690.0,107680.0,0.12467592]
[1762149263680,0.04341,107690.0,107680.0,0.12367592]
[1762149263879,0.04541,107690.0,107680.0,0.12367592]
[1762149264591,0.20051327,107690.0,107680.0,0.11244592]
[1762149264782,0.20051327,107690.0,107680.0,0.04363]
[1762149265089,0.05812,107690.0,107680.0,0.04363]
[1762149265284,0.05812,107690.0,107680.0,0.12304592]
[1762149265589,0.05711,107690.0,107680.0,0.04363]
[1762149267492,0.19950327,107690.0,107680.0,0.04363]
[1762149267678,0.52174327,107690.0,107680.0,0.04363]
[1762149268696,0.37935,107690.0,107680.0,0.04363]
[1762149269891,0.05861,107680.0,107670.0,0.11208592]
[1762149271386,0.05861,107680.0,107670.0,0.11408592]
[1762149271592,0.05861,107680.0,107670.0,0.04727]
[1762149271893,0.20100327,107680.0,107670.0,0.002]
[1762149272387,0.20100327,107680.0,107670.0,0.02408]
[1762149272587,0.05861,107680.0,107670.0,0.04627]
[1762149272786,0.20100327,107680.0,107670.0,0.04627]
[1762149273187,0.20300327,107680.0,107670.0,0.04527]
[1762149274289,0.20300327,107680.0,107660.0,0.08038592]
[1762149274494,0.20300327,107680.0,107670.0,0.02208]
[1762149275589,0.20300327,107680.0,107670.0,0.04527]
[1762149275789,0.199309,107680.0,107670.0,0.04527]
[1762149275992,0.197309,107680.0,107670.0,0.04527]
[1762149277097,0.199309,107680.0,107670.0,0.04527]
[1762149277785,0.521549,107680.0,107670.0,0.04527]
[1762149278495,0.0449,107670.0,107660.0,0.05884]
[1762149278695,0.15886014,107670.0,107660.0,0.05884]
[1762149279485,0.16787014,107670.0,107660.0,0.04527]
[1762149280194,0.16987014,107670.0,107660.0,0.04527]
[1762149285303,0.16987014,107670.0,107660.0,0.05813]
[1762149285808,0.16987014,107670.0,107660.0,0.04527]
[1762149288698,0.16987014,107670.0,107660.0,0.02208]
[1762149288905,0.04766,107660.0,107650.0,0.12638432]
[1762149289206,0.48386014,107660.0,107650.0,0.12638432]
[1762149289403,0.59782028,107660.0,107650.0,0.11281432]
[1762149289998,0.59782028,107660.0,107650.0,0.0459984]
[1762149291001,0.60723172,107660.0,107650.0,0.0459984]
[1762149291510,0.60723172,107660.0,107650.0,0.0479984]
[1762149291705,0.60723172,107660.0,107650.0,0.0499984]
[1762149295714,0.60353745,107660.0,107650.0,0.0499984]
[1762149296613,0.37561717,107660.0,107650.0,0.0628584]
[1762149296810,0.05022717,107660.0,107650.0,0.17681854]
[1762149297011,0.37246717,107660.0,107650.0,0.17681854]
[1762149297913,0.05022717,107660.0,107650.0,0.17681854]
[1762149298212,0.48642731,107660.0,107650.0,0.17681854]
[1762149298407,0.17218014,107680.0,107670.0,0.04592]
[1762149298622,0.6315127,107680.0,107670.0,0.04592]
[1762149299000,0.6315127,107680.0,107670.0,0.02307]
[1762149299214,0.04451,107670.0,107660.0,0.17274014]
[1762149299407,0.16791739,107670.0,107660.0,0.17274014]
[1762149301303,0.02328,107680.0,107670.0,0.04592]
[1762149301502,0.001,107680.0,107670.0,0.17274014]
[1762149301699,0.39579081,107700.0,107690.0,0.05878]
[1762149301905,0.60232727,107700.0,107690.0,0.17274014]